Cogmind - Beta 14 @@@ ROGUE MODE // 2024.10.19 @ 18:56:57 Player: buwwet Result: Destroyed by Y-54 Guardian with Gatling Laser Performance ------------- Evolutions (4) 2000 Regions Visited (10) 2000 Robots Destroyed (123) 615 Value Destroyed (3292) 3292 Prototype IDs (12) 240 Alien Tech Used (0) 0 Bonus (331) 331 TOTAL SCORE: 8478 Bonus ------- Follower Combat Kills 58 Aligned with FarCom 300 Friendly Fire -27 Cogmind --------- Core Integrity 0/850 Matter 239/300 Energy 86/100 System Corruption 5% Temperature Cool (6) Movement Core (50) Location -6/Factory Parts ------- > --- POWER (1) -------- (None) > --- PROPULSION (6) --- (None) > --- UTILITY (6) ------ Enhanced Optical Array Core Analyzer Hacking Suite Hacking Suite Hacking Suite > --- WEAPON (2) ------- (None) > --- INVENTORY (5) ---- Light Deuterium Engine Micro Nuclear Core Advanced Heat Sink Authchip [Propulsion] Remote Datajack Peak State ------------ > --- POWER ------------ Light Nuclear Core > --- PROPULSION ------- Aerolev Unit Aerolev Unit Aerolev Unit Aerolev Unit Gravmag System Cooled Gravmag System > --- UTILITY ---------- Large Storage Unit Machine Analyzer Enhanced Optical Array Core Analyzer Core Analyzer Hacking Suite > --- WEAPON ----------- Remote Datajack Longsword +1 > --- INVENTORY -------- Light Deuterium Engine Light Nuclear Core Micro Nuclear Core Improved Hover Unit Improved Gravmag System Advanced Heat Sink Medium Storage Unit Weight Redist. System Advanced Targeting Computer System Shield Authchip [Propulsion] Authchip [Processor] Shock Rifle [Rating: 66] Favorites ----------- Power Light Nuclear Core Engine Ion Engine Power Core Light Nuclear Core Propulsion Light Treads Treads Light Treads Leg Titanium Leg Wheel Compact Wheel Hover Unit Aerolev Unit Flight Unit Improved VTOL Module Utility Hacking Suite Device Improved Heat Sink Storage Large Storage Unit Processor Core Analyzer Hackware Hacking Suite Protection Improved Light Armor Plating Weapon Particle Cannon Energy Gun Heavy EM Shotgun Energy Cannon Particle Cannon Ballistic Cannon Improved Light Cannon Special Weapon Remote Datajack Slashing Weapon Longsword +1 Special Melee Weapon Datajack Build | -11 -10 -10 -9 -9 -9 -8 -8 -8 -8 -6 ------- Run | Yrd Mat Min Mat Min Exi Min Mat Sto Rec Fac Slots Evolved 8 | . . . 2 . . . 2 . . 4 Power . | . . . . . . . . . . . Propulsion 4 | . . . . . . . 2 . . 2 Utility 4 | . . . 2 . . . . . . 2 Weapon . | . . . . . . . . . . . Parts Attached 121 | 7 9 1 9 6 3 . 31 18 12 25 Power 15 | 1 2 1 1 1 . . 6 1 1 1 Engine 4 | 1 2 1 . . . . . . . . Core 11 | . . . 1 1 . . 6 1 1 1 Reactor . | . . . . . . . . . . . Propulsion 39 | 2 2 . 3 . . . 11 6 4 11 Treads 20 | 1 2 . 3 . . . 11 2 . 1 Leg 3 | 1 . . . . . . . 1 . 1 Wheel 1 | . . . . . . . . 1 . . Hover 14 | . . . . . . . . 1 4 9 Flight 1 | . . . . . . . . 1 . . Utility 29 | 2 2 . 4 4 . . 4 4 1 8 Device 7 | 1 1 . . 1 . . 2 1 . 1 Storage 3 | 1 1 . 1 . . . . . . . Processor 5 | . . . . . . . . 1 1 3 Hackware 6 | . . . 1 . . . . 1 . 4 Protection 8 | . . . 2 3 . . 2 1 . . Artifact . | . . . . . . . . . . . Weapon 38 | 2 3 . 1 1 3 . 10 7 6 5 Energy Gun 16 | 2 . . . . . . 7 4 1 2 Energy Cannon 12 | . 3 . 1 1 1 . 3 . 3 . Ballistic Gun . | . . . . . . . . . . . Ballistic Cannon 1 | . . . . . 1 . . . . . Launcher . | . . . . . . . . . . . Special Weapon 1 | . . . . . . . . . . 1 Impact Weapon . | . . . . . . . . . . . Slashing Weapon 6 | . . . . . 1 . . 3 1 1 Piercing Weapon . | . . . . . . . . . . . Special Melee Weapon 2 | . . . . . . . . . 1 1 Unidentified Prototypes 8 | . . . 1 . 1 . 2 2 2 . Corrupted Parts 2 | . . . . . . . . . . 2 System Corruption 4 | . . . . . . . . . . 4 Parts Lost 34 | . . . . 1 . . 1 6 7 19 Power 5 | . . . . 1 . . . 1 1 2 Propulsion 13 | . . . . . . . . 2 2 9 Utility 6 | . . . . . . . . 3 1 2 Weapon 10 | . . . . . . . 1 . 3 6 Highest Loss Streak 9 | . . . . 1 . . 1 2 6 9 To Critical Strikes . | . . . . . . . . . . . Average Slot Usage (%) 98 | . 100 100 100 99 100 100 99 99 99 86 Engine 2 | . 14 14 . . . . . . . . Core 7 | . . . 10 11 11 11 9 9 9 5 Treads 24 | . 16 28 22 22 22 22 36 32 25 . Leg 2 | . 11 . . . . . . 1 8 . Hover 2 | . . . . . . . . . . 33 Device 8 | . 14 14 11 11 11 11 9 6 . . Storage 10 | . 14 14 11 11 11 11 9 9 9 6 Processor 2 | . . . . . . . . 2 9 19 Hackware 8 | . . . 11 11 11 11 9 9 17 6 Protection 6 | . . . 11 10 11 11 9 8 . . Energy Gun 4 | . 1 . . . . . 5 12 13 6 Energy Cannon 13 | . 26 28 22 22 14 11 11 4 3 . Ballistic Cannon 1 | . . . . . 7 11 . . . . Peak Build Rating 66 | 7 10 10 20 21 25 20 29 35 48 66 Average Rating 25 | 5 9 10 19 20 19 20 27 30 34 54 On Entrance 19 | . 7 10 10 20 19 20 20 26 34 48 Naked Turns . | . . . . . . . . . . . Heaviest Build 42 | 14 24 24 37 42 38 38 42 39 35 34 Greatest Support 82 | 20 40 40 40 40 40 40 80 82 62 44 Greatest Overweight (x) 10 | . 1 . . 1 . . . . 2 10 Average Overweight (x) . | . . . . . . . . . . . Largest Inventory Capacity 15 | 8 10 10 15 15 15 15 15 15 15 15 Average Capacity 14 | 7 9 10 14 15 15 15 15 15 15 14 Most Carried 15 | 5 10 10 15 15 15 15 15 15 15 15 Average Carried 13 | 2 9 10 13 14 15 15 14 13 12 11 Final Capacity 15 | 8 10 10 15 15 15 15 15 15 15 5 Final Carried 15 | 5 10 10 15 15 15 15 15 12 9 5 Class Distribution -------------------- 52% | Mutant 34% | Scavenger-Mutant 6% | Hacker-Mutant 3% | Scavenger-Scout Dominant Class ---------------- Mutant | -10/Materials Mutant | -10/Mines Mutant | -9/Materials Mutant | -9/Mines Mutant | -9/Exiles Mutant | -8/Mines Scavenger-Mutant | -8/Materials Scavenger-Mutant | -8/Storage Hacker-Mutant | -8/Recycling Scavenger-Scout | -6/Factory Resources | -11 -10 -10 -9 -9 -9 -8 -8 -8 -8 -6 ----------- Run | Yrd Mat Min Mat Min Exi Min Mat Sto Rec Fac Matter Collected 1357 | 210 150 10 90 50 . 31 358 198 65 195 Remotely . | . . . . . . . . . . . Salvage Created 4671 | 44 571 122 699 235 . 28 1588 778 120 486 Parts 293 | 7 38 3 42 15 . . 104 41 9 34 Haulers Intercepted 10 | . 2 . 2 . . . 6 . . . Recyclers Shooed 1 | . . . . . . . 1 . . . Parts Field Recycled . | . . . . . . . . . . . Retrieved Matter . | . . . . . . . . . . . Parts Self-Destructed . | . . . . . . . . . . . Prevented . | . . . . . . . . . . . Kills | -11 -10 -10 -9 -9 -9 -8 -8 -8 -8 -6 ------- Run | Yrd Mat Min Mat Min Exi Min Mat Sto Rec Fac Combat Hostiles Destroyed 88 | . 13 6 16 6 . 1 23 15 1 7 Melee 8 | . . . . . . . . . 1 7 Guns 14 | . . . . . . . 7 7 . . Cannons 60 | . 13 6 16 6 . . 14 5 . . AOE 3 | . . . . . . . . 3 . . Classes Destroyed 15 | 1 6 1 2 1 . 1 2 . . 1 Worker 2 | . . . . . . . 1 1 . . Builder 2 | . 1 . . . . . 1 . . . Tunneler 3 | 2 . . 1 . . . . . . . Hauler 10 | . 2 . 2 . . . 6 . . . Recycler 2 | . . . . . . . 1 1 . . Operator 8 | . 2 . . . . . 2 2 . 2 Watcher 12 | . 2 . 3 . . . 3 2 . 2 Swarmer 30 | . 6 . 8 2 . . 6 7 . 1 Grunt 34 | . 7 2 4 2 . . 10 6 . 3 Brawler 2 | . . . . 2 . . . . . . Duelist 1 | . . . 1 . . . . . . . Sentry 12 | . . . 3 . . . 6 2 . 1 Hunter 2 | . . . . . . 1 1 . . . Programmer 2 | . . . . . . . . . . 2 Assembled 4 | . . 4 . . . . . . . . Best Kill Streak 6 | 1 4 4 5 3 . 1 6 5 1 4 Combat Bots Only 5 | . 4 4 5 3 . 1 3 5 1 2 Max Kills in Single Turn 2 | 1 2 1 1 1 . 1 2 2 1 1 Gunslinging . | . . . . . . . . . . . Exploded 2 | . . . . . . . . 2 . . Melee 1 | . . . . . . . . . 1 1 Uniques/NPCs Destroyed 1 | . . . . . . . . . 1 . 01-MTF (-8/Recycling) Combat | -11 -10 -10 -9 -9 -9 -8 -8 -8 -8 -6 -------- Run | Yrd Mat Min Mat Min Exi Min Mat Sto Rec Fac Hostile Shots Fired 636 | . 62 22 68 14 . 12 105 84 54 215 Missed 202 | . 22 4 26 3 . 4 30 33 17 63 Damage Taken 6347 | . 398 253 361 106 . 114 1094 1005 704 2312 Core 1379 | . 61 69 55 12 . 29 154 30 117 852 Absorbed by Shields 6 | . . . . . . . . . 6 . Core Remaining (%) 67 | 100 . 48 . . . 76 . . 45 . Volleys Fired 233 | 2 41 11 40 12 . 5 76 34 6 6 Largest 2 | 2 2 2 2 2 . 2 2 2 2 2 Hottest 136 | 90 136 136 136 136 . 107 133 113 113 100 Shots Fired 466 | 4 82 22 80 24 . 10 152 67 13 12 Gun 125 | 4 . . . . . . 54 48 7 12 Cannon 341 | . 82 22 80 24 . 10 98 19 6 . Launcher . | . . . . . . . . . . . Special . | . . . . . . . . . . . Kinetic 15 | . . . . . . 5 10 . . . Thermal 305 | 4 82 22 80 24 . 5 88 . . . Explosive . | . . . . . . . . . . . Electromagnetic 146 | . . . . . . . 54 67 13 12 Robot Hit Streak 16 | 2 8 7 11 4 . 11 16 10 8 6 Robot Miss Streak 7 | . 4 3 2 4 . . 7 3 2 1 Penetration Max . | . . . . . . . . . . . Secondary Targets . | . . . . . . . . . . . Shots Hit Robots 346 | 2 44 10 54 11 . 9 98 48 27 43 Core Hits 160 | 2 21 7 23 6 . . 52 31 3 15 Critical Kills 1 | . . . . . . 1 . . . . Critical Parts Destroyed . | . . . . . . . . . . . Critical Strikes 5 | . . . . . . 1 1 . . 3 Meltdown 1 | . . . . . . 1 . . . . Blast 1 | . . . . . . . 1 . . . Sever 3 | . . . . . . . . . . 3 Melee Attacks 98 | . . . . . . . . 39 15 44 Impact . | . . . . . . . . . . . Slashing 78 | . . . . . . . . 39 2 37 Piercing . | . . . . . . . . . . . Sneak Attacks 18 | . . . . . . . . . 11 7 Combat Hostiles 13 | . . . . . . . . . 8 5 Follow-up Attacks . | . . . . . . . . . . . Damage Inflicted 8089 | 36 962 207 1139 266 . 164 2419 1204 183 1509 Guns 1570 | 36 . . . . . . 787 637 30 80 Cannons 4638 | . 962 204 1135 266 . 164 1491 383 33 . Explosions 365 | . . . . . . . 141 184 40 . Melee 1507 | . . . . . . . . . 80 1427 Ramming 9 | . . 3 4 . . . . . . 2 Kinetic 204 | . . . . . . 61 143 . . . Thermal 4419 | 36 962 204 1135 266 . 103 1489 184 40 . Explosive . | . . . . . . . . . . . Electromagnetic 1950 | . . . . . . . 787 1020 63 80 Impact . | . . . . . . . . . . . Slashing 1507 | . . . . . . . . . 80 1427 Piercing . | . . . . . . . . . . . Highest Corruption 15 | . . . . . . . . 5 15 10 Average Corruption 5 | . . . . . . . . 5 5 4 Corruption Purged 5 | . . . . . . . . . . 5 Corruption Blocked . | . . . . . . . . . . . Effects 49 | . . . . . . . . 6 22 21 Message Errors 7 | . . . . . . . . 1 2 4 Matter Fused 13 | . . . . . . . . 4 6 3 Heat Flow Errors 6 | . . . . . . . . . 3 3 Energy Discharges 7 | . . . . . . . . 1 1 5 Parts Rejected 2 | . . . . . . . . . . 2 Parts Fused 2 | . . . . . . . . . 1 1 Data Loss (minor) 7 | . . . . . . . . . 5 2 Data Loss (major) 1 | . . . . . . . . . 1 . Misfires 3 | . . . . . . . . . 2 1 Alerts 1 | . . . . . . . . . 1 . Overload Shots . | . . . . . . . . . . . Overflow Damage 273 | . 21 . 19 . . . 47 62 15 109 Projectiles 55 | . 21 . 19 . . . 8 7 . . Explosions 109 | . . . . . . . 39 55 15 . Melee 109 | . . . . . . . . . . 109 Knockbacks 4 | . . . . . . 2 2 . . . Impact . | . . . . . . . . . . . Kinetic 4 | . . . . . . 2 2 . . . Secondary . | . . . . . . . . . . . Self-Inflicted Damage 279 | . . . . . . . 89 189 . 1 Shots 6 | . . . . . . . 2 4 . . Rammed 4 | . . 1 1 . . . . . . 2 Targets Rammed 4 | . . 1 1 . . . . . . 2 Kicked . | . . . . . . . . . . . Crushed . | . . . . . . . . . . . Highest Temperature 340 | 30 340 180 265 175 . . 168 156 226 256 Average Temperature 76 | 17 110 69 93 60 . . 49 35 69 85 Received Heat Transfer 1141 | . 171 81 24 24 . . 387 153 34 267 Effects 6 | . 4 . . . . . . . . 2 Shutdowns 1 | . 1 . . . . . . . . . Energy Bleed 2 | . 2 . . . . . . . . . Interference 3 | . 1 . . . . . . . . 2 Siege Activations . | . . . . . . . . . . . Robots Corrupted 1 | . . . . . . . 1 . . . Combat Hostiles 1 | . . . . . . . 1 . . . Parts Fried 14 | . . . . . . . 6 7 1 . Impact Corruptions . | . . . . . . . . . . . Robots Melted 2 | . . . . . . 1 1 . . . Combat Hostiles 2 | . . . . . . 1 1 . . . Parts Melted 16 | . 3 . 6 1 . . 5 1 . . Heat Transferred 7455 | 99 1739 370 2035 481 . 185 2246 250 50 . Parts Sabotaged . | . . . . . . . . . . . Parts Stolen . | . . . . . . . . . . . Parts Stripped . | . . . . . . . . . . . Power Chain Reactions 8 | . . . . . . . 4 3 1 . Alert | -11 -10 -10 -9 -9 -9 -8 -8 -8 -8 -6 ------- Run | Yrd Mat Min Mat Min Exi Min Mat Sto Rec Fac Peak Influence 378 | 10 182 62 181 140 . 30 300 378 129 343 Initial 118 | . 6 12 . . . . . 31 118 . Average 83 | 3 77 26 42 50 . . 107 194 57 109 Maximum Alert Level 1 | . . . . . . . 1 1 . 1 Low Security (%) 85 | 100 100 100 100 100 . 100 74 44 100 79 Level 1 14 | . . . . . . . 25 55 . 20 Level 2 . | . . . . . . . . . . . Level 3 . | . . . . . . . . . . . Level 4 . | . . . . . . . . . . . Level 5 . | . . . . . . . . . . . High Security . | . . . . . . . . . . . Max Security . | . . . . . . . . . . . Squads Dispatched 9 | . 3 . . . . . 1 2 . 3 Investigation 1 | . 1 . . . . . . . . . Extermination 1 | . . . . . . . . . . 1 Reinforcement 7 | . 2 . . . . . 1 2 . 2 Assault . | . . . . . . . . . . . Garrison . | . . . . . . . . . . . Intercept . | . . . . . . . . . . . Searches Triggered . | . . . . . . . . . . . Construction Impeded . | . . . . . . . . . . . Haulers Reinforced 1 | . . . . . . . . . . 1 Active Scanning Responses . | . . . . . . . . . . . Cargo Convoy Interrupts . | . . . . . . . . . . . Stealth | -11 -10 -10 -9 -9 -9 -8 -8 -8 -8 -6 --------- Run | Yrd Mat Min Mat Min Exi Min Mat Sto Rec Fac Distress Signals 13 | . 2 . 3 . . . 3 1 . 4 Communications Jammed . | . . . . . . . . . . . Distress Signals . | . . . . . . . . . . . Times Spotted 181 | . 22 8 21 8 . 1 42 23 22 34 Peak Tracking Total 7 | . 5 2 6 4 . 1 5 5 2 7 Tactical Retreats 20 | . 1 . . 1 . . 3 3 4 8 Traps | -11 -10 -10 -9 -9 -9 -8 -8 -8 -8 -6 ------- Run | Yrd Mat Min Mat Min Exi Min Mat Sto Rec Fac Traps Triggered 6 | . 1 . . . . . 1 1 . 3 Indirectly . | . . . . . . . . . . . Trap Hack Attempts . | . . . . . . . . . . . Triggered . | . . . . . . . . . . . Disarmed . | . . . . . . . . . . . Reprogrammed . | . . . . . . . . . . . Reused . | . . . . . . . . . . . Traps Extracted . | . . . . . . . . . . . Installed . | . . . . . . . . . . . Triggered . | . . . . . . . . . . . Machines | -11 -10 -10 -9 -9 -9 -8 -8 -8 -8 -6 ---------- Run | Yrd Mat Min Mat Min Exi Min Mat Sto Rec Fac Machines Disabled 16 | . 4 . 2 . . . 2 6 1 1 Max in Single Turn 2 | . 1 . 1 . . . 1 2 1 1 Machines Repaired . | . . . . . . . . . . . Machines Dismantled . | . . . . . . . . . . . Machines Sabotaged . | . . . . . . . . . . . Overloaded Fab Kills . | . . . . . . . . . . . Hacking | -11 -10 -10 -9 -9 -9 -8 -8 -8 -8 -6 --------- Run | Yrd Mat Min Mat Min Exi Min Mat Sto Rec Fac Machines Accessed 45 | . 3 . 12 . . . 7 6 8 9 Terminals 38 | . 3 . 10 . . . 7 6 6 6 Fabricators 2 | . . . . . . . . . . 2 Repair Stations . | . . . . . . . . . . . Recycling Units 2 | . . . . . . . . . 2 . Scanalyzers 3 | . . . 2 . . . . . . 1 Garrison Access . | . . . . . . . . . . . Total Hacks 134 | . 6 . 47 . . . 23 18 22 18 Successful 75 | . 2 . 33 . . . 10 10 13 7 Failed 58 | . 4 . 14 . . . 12 8 9 11 Catastrophic 9 | . 3 . 1 . . . 2 1 . 2 Database Lockouts 1 | . . . . . . . 1 . . . Manual 53 | . 5 . 15 . 1 . 11 9 10 2 Terminals 113 | . 6 . 36 . . . 23 18 17 13 Fabricators 4 | . . . . . . . . . . 4 Repair Stations . | . . . . . . . . . . . Recycling Units 5 | . . . . . . . . . 5 . Scanalyzers 12 | . . . 11 . . . . . . 1 Garrison Access . | . . . . . . . . . . . Terminal Hacks 55 | . 2 . 21 . . . 10 9 10 3 Part Schematic 2 | . . . . . . . 1 1 . . Robot Analysis 5 | . . . 3 . . . . . 1 1 Prototype ID Bank 2 | . . . 2 . . . . . . . Open Door 2 | . . . . . . . . 2 . . Open DSF 1 | . . . . . . . . . . 1 Level Access Points 1 | . . . . . . . . . 1 . Branch Access Points 4 | . . . 1 . . . 1 1 1 . Terminal Index 3 | . . . 1 . . . 1 . 1 . Alert Level 2 | . . . 1 . . . . 1 . . Unreport Threat 12 | . 1 . 4 . . . 4 1 2 . Locate Traps 4 | . . . 2 . . . . 1 . 1 Dispatch Records 1 | . . . 1 . . . . . . . Maintenance Status 1 | . . . . . . . 1 . . . Transport Status 1 | . . . 1 . . . . . . . Reinforcement Status 1 | . . . 1 . . . . . . . Hauler Manifests 5 | . 1 . 1 . . . 1 1 1 . Registered Components 4 | . . . 1 . . . 1 1 1 . Zone Layout 4 | . . . 2 . . . . . 2 . Fabricator Hacks 4 | . . . . . . . . . . 4 Load Schematic 2 | . . . . . . . . . . 2 Build 2 | . . . . . . . . . . 2 Repair Station Hacks . | . . . . . . . . . . . Recycling Unit Hacks 3 | . . . . . . . . . 3 . Report Inventory 2 | . . . . . . . . . 2 . Retrieve Components 1 | . . . . . . . . . 1 . Scanalyzer 10 | . . . 10 . . . . . . . Insert Component 5 | . . . 5 . . . . . . . Analyze 5 | . . . 5 . . . . . . . Garrison Access Hacks . | . . . . . . . . . . . Unauthorized Hacks 3 | . . . 2 . . . . 1 . . Terminals 3 | . . . 2 . . . . 1 . . Botnet 3 | . . . 2 . . . . 1 . . Fabricators . | . . . . . . . . . . . Repair Stations . | . . . . . . . . . . . Recycling Units . | . . . . . . . . . . . Scanalyzers . | . . . . . . . . . . . Garrison Access . | . . . . . . . . . . . Data Cores Recovered 2 | . . . . . . . 1 . . 1 Used . | . . . . . . . . . . . Hacking Detections 38 | . 3 . 12 . . . 6 5 6 6 Full Trace Events . | . . . . . . . . . . . Feedback Events . | . . . . . . . . . . . Feedback Blocked . | . . . . . . . . . . . Robot Schematics Acquired . | . . . . . . . . . . . Robots Built . | . . . . . . . . . . . Authchips . | . . . . . . . . . . . Time . | . . . . . . . . . . . Total Robot Build Rating . | . . . . . . . . . . . Part Schematics Acquired 6 | . . . 4 . . . 1 1 . . Parts Built 1 | . . . . . . . . . . 1 Authchips 2 | . . . . . . . . . . 2 Time 109 | . . . . . . . . . . 109 Total Part Build Rating 3 | . . . . . . . . . . 3 Parts Repaired . | . . . . . . . . . . . Time . | . . . . . . . . . . . Parts Recycled . | . . . . . . . . . . . Recycled Matter . | . . . . . . . . . . . Retrieved Matter . | . . . . . . . . . . . Retrieved Components 3 | . . . . . . . . . 3 . Parts Scanalyzed 4 | . . . 4 . . . . . . . Part Schematics Acquired 4 | . . . 4 . . . . . . . Parts Damaged . | . . . . . . . . . . . Bothacking | -11 -10 -10 -9 -9 -9 -8 -8 -8 -8 -6 ------------ Run | Yrd Mat Min Mat Min Exi Min Mat Sto Rec Fac Used RIF Installer . | . . . . . . . . . . . Robots Hacked 1 | . . . . . . . . . . 1 Non-combat . | . . . . . . . . . . . Combat 1 | . . . . . . . . . . 1 Robot Hacks Applied 1 | . . . . . . . . . . 1 parse_system 1 | . . . . . . . . . . 1 Relay Couplers Released . | . . . . . . . . . . . Fabnet Peak Effective % . | . . . . . . . . . . . Robots Rewired 10 | . . . . . . . . . 10 . Allies Hacked . | . . . . . . . . . . . Hacks Repelled . | . . . . . . . . . . . Allies | -11 -10 -10 -9 -9 -9 -8 -8 -8 -8 -6 -------- Run | Yrd Mat Min Mat Min Exi Min Mat Sto Rec Fac Total Allies 13 | . . . . 3 . . . . 10 . Largest Group 10 | . . . . 3 . . . . 10 . Highest-Rated Group 141 | . . . . 40 . . . . 141 . Highest-Rated Ally 34 | . . . . 16 . . . . 34 . Total Orders . | . . . . . . . . . . . Ally Attacks 28 | . . . . 7 . . . . 21 . Total Damage 439 | . . . . 79 . . . . 360 . Kills 3 | . . . . 1 . . . . 2 . Allies Corrupted 3 | . . . . 2 . . . . 1 . Allies Melted . | . . . . . . . . . . . Intel | -11 -10 -10 -9 -9 -9 -8 -8 -8 -8 -6 ------- Run | Yrd Mat Min Mat Min Exi Min Mat Sto Rec Fac Robot Analysis Total 5 | . . . 3 . . . . . 1 1 Derelict Logs Recovered 1 | . . 1 . . . . . . . . Drone Launches . | . . . . . . . . . . . Drone Recoveries . | . . . . . . . . . . . Exploration | -11 -10 -10 -9 -9 -9 -8 -8 -8 -8 -6 ------------- Run | Yrd Mat Min Mat Min Exi Min Mat Sto Rec Fac Turns Passed 10805 | 79 1039 496 1259 745 613 945 2681 1173 905 870 Spaces Moved 5931 | 39 392 281 657 407 380 515 1050 521 556 1133 Core 17 | 4 . . . . . . . . . 13 Treads 4738 | 35 392 281 657 407 380 515 1050 521 500 . Legs . | . . . . . . . . . . . Wheels . | . . . . . . . . . . . Hover 1176 | . . . . . . . . . 56 1120 Flight . | . . . . . . . . . . . Fastest Speed 34 | 50 160 160 160 160 160 160 160 155 38 34 Average Speed 139 | 148 215 160 160 160 160 160 160 156 143 42 Slowest Speed 550 | 160 240 160 160 240 160 160 160 160 225 550 Overloaded Moves . | . . . . . . . . . . . Propulsion Burnouts . | . . . . . . . . . . . Robots Hopped . | . . . . . . . . . . . Cave-ins Triggered 1 | . . . . . . . . 1 . . Exploration Rate (%) 64 | 3 68 55 73 84 88 88 62 67 86 30 Regions Visited 10 Branch Regions 6 Pre-discovered Areas 1 | . . . . 1 . . . . . . Known Exits Taken 5 | . . 1 1 . . . 1 1 1 . Unknown Exits Taken 5 | 1 1 . . 1 1 1 . . . . Scrap Searched 3 | . . . . 3 . . . . . . Spaces Dug 13 | . . . . . . . . 6 . 7 Terrain Destroyed 63 | . . . . . . . 30 25 1 7 Melee 13 | . . . . . . . . 6 . 7 Projectile 14 | . . . . . . . 14 . . . AOE 36 | . . . . . . . 16 19 1 . Terrain Rammed . | . . . . . . . . . . . Walls Destroyed . | . . . . . . . . . . . Machines Disabled . | . . . . . . . . . . . Actions | -11 -10 -10 -9 -9 -9 -8 -8 -8 -8 -6 --------- Run | Yrd Mat Min Mat Min Exi Min Mat Sto Rec Fac Total 7939 | 53 507 305 787 477 384 626 1917 770 640 1473 Wait 1356 | . 40 11 57 42 . 107 694 146 23 236 Move 5921 | 38 391 280 656 406 379 514 1049 520 555 1133 Hop . | . . . . . . . . . . . Pick Up 93 | 6 13 . 13 5 1 . 25 6 6 18 Fast Attach 30 | 6 2 . 2 1 . . 7 4 . 8 Attach 38 | 1 . . 2 1 . . 3 6 9 16 Detach 1 | . . . . . . . 1 . . . Swap 53 | . 7 1 5 4 3 . 21 8 3 1 Drop 89 | . 13 1 11 6 1 . 41 7 2 7 Fire 233 | 2 41 11 40 12 . 5 76 34 6 6 Melee 98 | . . . . . . . . 39 15 44 Ram 2 | . . . . . . . . . . 2 Kick . | . . . . . . . . . . . Crush 2 | . . 1 1 . . . . . . . Escape Stasis . | . . . . . . . . . . . Rewire 23 | . . . . . . . . . 21 2 Trap . | . . . . . . . . . . . Miscellaneous . | . . . . . . . . . . . Route ------- -11/Scrapyard -10/Materials (discovered 2 exits: [*Min x2]) -10/Mines -9/Materials (discovered 2 exits: *Mat / *Min) -9/Mines -9/Exiles -8/Mines -8/Materials (discovered 3 exits: [*Fac] / *Sto x2) -8/Storage -8/Recycling -6/Factory (discovered 2 exits: [*Fac] / [*Low]) History --------- Turn | Location | Event 10 | -11/Scrapyard | Discovered new exit (range 16) 80 | -11/Scrapyard | Entered Materials 264 | -10/Materials | Discovered new exit (range 8) 300 | -10/Materials | Build established: Mutant 366 | -10/Materials | Discovered new exit (range 6) 1119 | -10/Materials | Entered Mines 1309 | -10/Mines | Identified exit to Materials 1412 | -10/Mines | Assembled infested the area 1614 | -10/Mines | Core integrity fell below 50% 1615 | -10/Mines | Entered Materials 1615 | -9/Materials | Evolved 2 slots: Utility x2 1748 | -9/Materials | Identified exit to Mines 2349 | -9/Materials | Discovered new exit (range 16) 2874 | -9/Materials | Entered Mines 3080 | -9/Mines | Learned location of Storage (-8) 3237 | -9/Mines | Assisted by bots powering up and referring to "LRC-V3" 3440 | -9/Mines | Received a Rocket Launcher from a helpful Derelict 3612 | -9/Mines | Deemed a non-threat by the Exiles lab entrance 3612 | -9/Mines | Discovered new exit (range 5) 3616 | -9/Mines | Lost 3 allies 3619 | -9/Mines | Entered Exiles 3656 | -9/Exiles | Met 8R-AWN 3685 | -9/Exiles | Met EX-HEX 3730 | -9/Exiles | Met EX-BIN 3749 | -9/Exiles | Aligned with FarCom system 3751 | -9/Exiles | Given EX-Vault access code 3803 | -9/Exiles | Opened EX-Vault 3810 | -9/Exiles | Found Prototype Slashing Weapon 3811 | -9/Exiles | Identified Longsword +1 3849 | -9/Exiles | Warned to stay clear of 0b10 Research branches 3894 | -9/Exiles | Met EX-DEC 3966 | -9/Exiles | Visited The Gauntlet 4214 | -9/Exiles | Discovered new exit (range 14) 4232 | -9/Exiles | Left Exiles lab with Longsword +1 4232 | -9/Exiles | Entered Mines 5159 | -8/Mines | Discovered new exit (range 14) 5177 | -8/Mines | Entered Materials 5177 | -8/Materials | Evolved 2 slots: Propulsion x2 5416 | -8/Materials | Discovered new exit (range 5) 5662 | -8/Materials | Build established: Scavenger-Mutant 6066 | -8/Materials | Identified exit to Storage 6412 | -8/Materials | Discovered new exit (range 16) 7534 | -8/Materials | Central database locked down 7858 | -8/Materials | Entered Storage 8129 | -8/Storage | Identified exit to Recycling 8651 | -8/Storage | Crushed by falling debris 8862 | -8/Storage | Met 01-MTF 9031 | -8/Storage | Entered Recycling 9031 | -8/Recycling | Accompanied by 1 ally (01-MTF) 9032 | -8/Recycling | Met a Zionite searching for Scraptown 9289 | -8/Recycling | Build established: Hacker-Mutant 9382 | -8/Recycling | Discovered new exit (range 15) 9724 | -8/Recycling | Identified exit to Factory 9871 | -8/Recycling | Lost 10 allies 9871 | -8/Recycling | System corruption reached 10% 9875 | -8/Recycling | Core integrity fell below 50% 9899 | -8/Recycling | Destroyed 01-MTF 9909 | -8/Recycling | Found Prototype Energy Gun 9910 | -8/Recycling | Identified 01-MTF's Shockpuncher 9927 | -8/Recycling | Lost 6 parts (1p2n1u2w) 9936 | -8/Recycling | Entered Factory 9936 | -6/Factory | Evolved 4 slots: Propulsion x2, Utility x2 10191 | -6/Factory | Discovered new exit (range 4) 10286 | -6/Factory | System corruption reached 10% 10360 | -6/Factory | Fabricated Hacking Suite? 10593 | -6/Factory | Build established: Scavenger-Scout 10615 | -6/Factory | Discovered new exit (range 4) 10731 | -6/Factory | Lost 9 parts (1p5n3w) 10779 | -6/Factory | Core integrity fell below 50% 10798 | -6/Factory | Core integrity fell below 20% 10806 | -6/Factory | Destroyed by Y-54 Guardian with Gatling Laser Last Messages --------------- 10739_ K-01 Serf cleans the Fusion Modulator. 10740_ >> Machine Analyzer network decryption results: 10740_ Terminal x2 10744_ >> Machine Analyzer network decryption results: 10744_ Terminal x2 10745_ Connecting with DSF Access... 10752_ Acquired Imp. Medium Treads. 10767_ Machine Analyzer destroyed. 10776_ Imp. Hover Unit destroyed. 10783_ Gravmag System destroyed. 10784_ Lgt. Nuclear Core destroyed. 10786_ Slammed into Y-54 Guardian. 10790_ System corrupted: Imp. Gravmag System rejected. 10791_ Imp. Medium Treads destroyed. 10793_ Target Analyzer destroyed. 10803_ Dropped Lrg. Storage Unit. 10803_ Slammed into S-27 Virus. Map ----- +----------------------------------------------------+ | ??????????????????????????????????????????? | | ??????????????????????????????????????????# | | ??????????????????????????????????????????# | | ?????????????????????????????????????###### | | ???????????????????????????????????? | | ????????????????????????????????????? | | ?????????????????????????????????????? | | ?????????????????????????????????????? | | ???????????????????????????????????????? | | ??????????????????????????????????????????# | | ??????????????????????????????????????????# | | ??????????????????????????????????????????# | | ??????????????????????????????????????????+ | | ??????????????????????????????????????????# | | ??????????????????????????????????????????# | | ??????????????????????????????????????????# | | ???????????????????????????######?????????# | | ???????????????????????????# #?????????# | | ???????????????????????????# #?????????# | | ???????????????????????????# #?????????# | | ???????????????????????????# #?????????# | | ???????????????????????????# ! #?????????# | | ???????????????????#+#?????# #????????## | | ???????##########??# #?????# !#????????# | | ???????# #??# #?????# #????????#T | | ???????# """ ####@####??# #????????## | | ???????# "T" # #??####+###???????# | | ???????# # ##### #???????# | | ???????# !!# ######### | | ???????# """ !/s s | | ???????# """ s#s g ########### | | ???????? """ # =Y !##### #??# | | ???????? !# #???### ###### ! | | ???????#############+########## # ! # ! | | ???????????# / + # ] | | ???????????# # # # | | ???????????# # # # """" | | ???????????# " #?!! # | | ???????????# ####?!! # | | ???????????# #????? # """ "" | | ???????????# #?????### """T"" | | ???????????###################??????????##??# | | | | | | | | | | | | | | | | | +----------------------------------------------------+ Best States ------------- Heat Dissipation 53 Energy Generation 14 Energy Capacity 250 Matter Stores 300 Matter Capacity 300 Sight Range 22 Terrain Scan Density 10 Armor Coverage 225 Evasion (%) 58 Target Analysis 5 Core Analysis 9 Recoil Reduction 4 Offensive Hacking 20 Defensive Hacking 10 Authchip Count 3 Item Schematics ----------------- Lgt. Nuclear Core | -9/Materials | Scanalyzed Signal Interpreter | -9/Materials | Scanalyzed Katana | -9/Materials | Scanalyzed Cooling System | -9/Materials | Scanalyzed Hacking Suite | -8/Materials | Hacked Adv. Signal Interpreter | -8/Storage | Hacked Robot Schematics ------------------ None Fabricated ------------ Hacking Suite | x1 | -6/Factory | Authchip Alien Tech Used ----------------- None Achievements -------------- None Challenges ------------ None Game ------ Seed WeaponGlidesysLattice Manual? 0 Play Time 01:54:17 Cumulative 33.9 hours Start 2024.10.19 @ 14:40:05 End 2024.10.19 @ 18:56:57 Sessions 5 Manual Loads 0 Difficulty Rogue Special Mode None Game No. 34 Rogue 34 Adventurer 0 Explorer 0 Win Type - Total 0 Types 0/0/0/0/0/0/0/0/0 Lore% 22 Gallery% 29 Achievement% 28 Wizard Run 0 Options --------- Layout 1 ASCII 0 Keyboard 0 Movement Arrows Keybinds 0 Fullscreen 2 Font 24/Terminus Map View 50x35 Zoom Use 0% Tactical HUD 1 Map Filters NONE Filters NONE Steam 1 RUN: afe509cb-3a0c-498f-a9c8-1897232445ef